bitfinex/quotes_BTCUSD_20250406
["timestamp","ask_amount","ask_price","bid_price","bid_amount"]
[1743966972003,0.00062036,79574.0,79573.0,0.263908]
[1743966972227,0.00062036,79574.0,79573.0,0.26353014]
[1743966972567,0.00062036,79574.0,79573.0,0.38643311]
[1743966972738,0.00062036,79574.0,79573.0,0.64019604]
[1743966972914,0.00062036,79574.0,79573.0,0.51729307]
[1743966973118,0.00062036,79574.0,79573.0,0.64019604]
[1743966973930,0.00062036,79574.0,79573.0,0.64007604]
[1743966974345,0.00062036,79574.0,79573.0,0.51717307]
[1743966974544,0.00062036,79574.0,79573.0,0.64007604]
[1743966974999,0.0005175,79574.0,79573.0,0.64007604]
[1743966975171,0.0001667,79610.0,79608.0,0.251231]
[1743966975370,0.0001667,79610.0,79608.0,0.263792]
[1743966975570,0.00021603,79609.0,79608.0,0.312792]
[1743966975772,0.00021603,79609.0,79608.0,0.553672]
[1743966976007,0.00021603,79609.0,79608.0,0.68910976]
[1743966976430,0.00021603,79609.0,79608.0,0.71216404]
[1743966976849,0.00021603,79609.0,79608.0,0.71204404]
[1743966977224,0.02021603,79609.0,79608.0,0.58914107]
[1743966977380,0.00021603,79609.0,79608.0,0.57660628]
[1743966977986,0.01021603,79609.0,79608.0,0.24076]
[1743966978215,0.01001603,79609.0,79608.0,0.504552]
[1743966978620,0.01001603,79609.0,79608.0,0.253321]
[1743966978899,0.0486,79649.0,79608.0,0.253321]
[1743966978900,0.251033,79671.0,79649.0,0.012555]
[1743966979177,0.27240069,79650.0,79649.0,0.263656]
[1743966979370,0.27253659,79650.0,79649.0,0.38717002]
[1743966979600,0.00789886,79650.0,79649.0,0.38717002]
[1743966979810,0.00253659,79650.0,79649.0,0.50498705]
[1743966980011,0.01253659,79650.0,79649.0,0.62789002]
[1743966980339,2.9e-07,79654.0,79653.0,0.263643]
[1743966980533,1e-06,79666.0,79665.0,0.263603]
[1743966980733,0.11200692,79699.0,79696.0,0.250953]
[1743966980971,0.40200692,79699.0,79698.0,0.012547]
[1743966981165,0.40200692,79699.0,79698.0,0.13544997]
[1743966981371,9.2e-07,79699.0,79698.0,0.37608997]
[1743966981575,0.00053329,79717.0,79716.0,0.263434]
[1743966981778,0.00053329,79717.0,79716.0,0.38633697]
[1743966982540,0.00053329,79717.0,79716.0,0.12290297]
[1743966982746,0.250922,79706.0,79705.0,0.00065584]
[1743966983085,0.212546,79706.0,79705.0,0.00065584]
[1743966983396,0.012546,79705.0,79696.0,0.0150564]
[1743966983597,0.012546,79703.0,79696.0,0.012547]
[1743966983803,0.012547,79694.0,79687.0,0.012549]
[1743966984053,0.29,79694.0,79689.0,0.012548]
[1743966984259,0.29,79694.0,79692.0,0.012548]
[1743966984409,0.10951324,79719.0,79716.0,0.263434]
[1743966984603,0.03053329,79717.0,79716.0,0.263434]
[1743966984988,0.00053329,79717.0,79716.0,0.263434]
[1743966985419,0.00053329,79717.0,79716.0,0.38633697]
[1743966985621,0.00053329,79717.0,79716.0,0.252984]
[1743966985856,0.01053329,79717.0,79714.0,0.012544]
[1743966986053,0.250918,79707.0,79692.0,0.012548]
[1743966986387,0.250918,79707.0,79684.0,0.0469]
[1743966986388,0.27,79707.0,79705.0,0.012546]
[1743966986529,0.00608844,79706.0,79701.0,0.250937]
[1743966986739,0.012546,79704.0,79697.0,0.012547]
[1743966986949,0.27,79704.0,79699.0,0.012547]
[1743966987153,0.00606187,79703.0,79701.0,0.263482]
[1743966987438,0.03606187,79703.0,79702.0,0.012546]
[1743966987641,0.03606187,79703.0,79697.0,0.012547]
[1743966987843,0.03,79703.0,79702.0,0.012546]
[1743966988140,0.012546,79702.0,79657.0,0.523642]
[1743966988343,0.2509,79713.0,79705.0,0.250922]
[1743966988618,0.00053329,79717.0,79716.0,0.263434]
[1743966988931,0.02053329,79717.0,79716.0,0.38633697]
[1743966989150,0.00053329,79717.0,79716.0,0.503714]
[1743966989351,0.00053329,79717.0,79714.0,0.250895]
[1743966989548,0.01053329,79717.0,79715.0,0.250891]
[1743966989749,0.01053329,79717.0,79716.0,0.012544]
[1743966990085,0.01053329,79717.0,79716.0,0.13795565]
[1743966990289,0.00053329,79717.0,79716.0,0.13544697]
[1743966990548,0.00053329,79717.0,79716.0,0.18234697]
[1743966990882,0.01053329,79717.0,79716.0,0.012544]
[1743966991434,0.00053329,79717.0,79716.0,0.012544]
[1743966991839,0.0001672,79749.0,79743.0,0.01254]
[1743966992023,0.29,79749.0,79748.0,0.012539]
[1743966992203,0.29013594,79749.0,79748.0,0.263328]
[1743966992406,0.29013594,79749.0,79748.0,0.268328]
[1743966992609,0.00013594,79749.0,79748.0,0.39123097]
[1743966992815,0.26013594,79749.0,79748.0,0.268328]
[1743966993028,0.01013594,79749.0,79748.0,0.268328]
[1743966993234,0.01013594,79749.0,79748.0,0.39123097]
[1743966993441,0.03013594,79749.0,79745.0,0.012539]
[1743966993903,0.04267494,79749.0,79738.0,0.005]
[1743966994105,0.00576385,79748.0,79746.0,0.012539]
[1743966994336,0.02576385,79748.0,79746.0,0.017539]
[1743966994540,0.012539,79746.0,79738.0,0.005]
[1743966994744,0.03,79746.0,79738.0,0.017541]
[1743966994918,0.250825,79737.0,79725.0,0.012543]
[1743966995216,0.012543,79723.0,79708.0,0.005]
[1743966995370,0.012545,79712.0,79701.0,0.005]
[1743966995570,0.38290297,79712.0,79702.0,0.250934]
[1743966995775,0.00571973,79711.0,79710.0,0.263453]
[1743966995976,0.03571973,79711.0,79710.0,0.012545]
[1743966996152,0.03571973,79711.0,79708.0,0.005]
[1743966996352,0.03,79711.0,79701.0,0.005]
[1743966996763,0.03013584,79711.0,79710.0,0.017545]
[1743966996968,0.03013584,79711.0,79707.0,0.26346]
[1743966996969,0.03013584,79711.0,79707.0,0.017545]
[1743966997139,0.03013584,79711.0,79706.0,0.012546]
[1743966997354,0.03013584,79711.0,79710.0,0.012545]
[1743966997647,0.03013584,79711.0,79710.0,0.017545]
[1743966997963,0.03013584,79711.0,79709.0,0.250911]
[1743966997964,0.34,79734.0,79718.0,0.012544]
[1743966998160,0.34,79723.0,79713.0,0.012545]
[1743966998477,0.1,79723.0,79722.0,0.263414]
[1743966998844,0.1,79723.0,79721.0,0.012543]
[1743966999043,0.1,79723.0,79722.0,0.268414]
[1743966999261,0.01254,79743.0,79730.0,0.012542]
[1743966999473,0.012539,79747.0,79722.0,0.005]
[1743966999474,0.012538,79755.0,79747.0,0.250792]
[1743966999667,0.12290297,79754.0,79751.0,0.012539]
[1743966999902,0.263254,79771.0,79761.0,0.012537]
[1743967000212,0.38615997,79770.0,79760.0,0.250752]
[1743967000366,0.012537,79762.0,79752.0,0.012538]
[1743967000531,0.012538,79753.0,79741.0,0.005]
[1743967000743,0.01254,79744.0,79732.0,0.012542]
[1743967000946,0.12290297,79743.0,79740.0,0.250815]
[1743967001212,0.27290297,79743.0,79737.0,0.012541]
[1743967001418,0.00557481,79742.0,79738.0,0.250821]
[1743967001621,0.250812,79741.0,79732.0,0.00045329]
[1743967001818,0.12290297,79740.0,79732.0,0.01299529]
[1743967002036,0.250818,79739.0,79732.0,0.00045329]
[1743967002234,0.352541,79733.0,79732.0,0.00045329]
[1743967002368,0.75544397,79733.0,79732.0,0.00045329]
[1743967002569,0.74845995,79733.0,79732.0,0.00045329]
[1743967002773,0.28555698,79733.0,79732.0,0.01299529]
[1743967003183,0.28555698,79733.0,79732.0,0.01799529]
[1743967003393,0.28555698,79733.0,79732.0,0.00045329]
[1743967003612,0.28,79733.0,79732.0,0.00045329]
[1743967003812,0.28566792,79733.0,79732.0,0.00045329]
[1743967004696,0.28566792,79733.0,79732.0,0.26348265]
[1743967004851,0.28566792,79733.0,79732.0,0.26848265]
[1743967005286,0.11580834,79733.0,79732.0,0.68046562]
[1743967005533,0.2959306,79801.0,79788.0,0.263195]
[1743967005847,0.12290297,79790.0,79785.0,0.012533]
[1743967005999,0.36290297,79790.0,79777.0,0.012534]
[1743967006212,0.250704,79776.0,79766.0,1.08364]
[1743967006563,0.012532,79792.0,79776.0,0.012535]
[1743967006740,0.012533,79786.0,79778.0,0.012534]
[1743967007059,0.012534,79777.0,79772.0,0.005]
[1743967007292,0.012536,79767.0,79766.0,1.08409346]
[1743967007433,0.38543897,79767.0,79766.0,0.00045346]
[1743967007844,0.38543897,79767.0,79731.0,0.005]
[1743967007845,0.01254,79740.0,79731.0,0.005]
[1743967008055,0.19254,79740.0,79731.0,0.005]
[1743967008245,0.19254,79740.0,79732.0,0.263382]
[1743967008446,0.012541,79734.0,79731.0,0.00045428]
[1743967008666,0.17,79734.0,79731.0,0.00045428]
[1743967008806,0.17,79734.0,79733.0,0.017541]
[1743967010455,0.17,79734.0,79733.0,0.005]
[1743967010662,0.17,79734.0,79733.0,0.017541]
[1743967010878,0.26329,79760.0,79749.0,0.263323]
[1743967011075,0.26329,79760.0,79747.0,0.250792]
[1743967011076,0.12290297,79759.0,79753.0,0.012538]
[1743967011285,0.01254,79743.0,79735.0,0.005]
[1743967011438,0.01254,79743.0,79727.0,1.574173]
[1743967011439,0.250834,79735.0,79729.0,0.005]
[1743967011654,0.03,79735.0,79733.0,0.012541]
[1743967011874,0.03,79735.0,79734.0,0.268375]
[1743967012103,0.03,79735.0,79731.0,0.00045428]
[1743967012483,0.03,79735.0,79734.0,0.017541]
[1743967012647,0.012535,79772.0,79758.0,0.012537]
[1743967012858,0.26328,79763.0,79759.0,0.02332875]
[1743967013050,0.012537,79760.0,79759.0,0.02332875]
[1743967013255,0.38543997,79760.0,79759.0,0.02332875]
[1743967013679,0.012539,79750.0,79739.0,0.250818]
[1743967013919,0.12290297,79749.0,79739.0,0.250818]
[1743967014130,0.64622997,79749.0,79741.0,0.250809]
[1743967014485,0.64622997,79749.0,79740.0,0.02332875]
[1743967014486,0.39544197,79749.0,79740.0,0.02332875]
[1743967014683,0.263333,79747.0,79741.0,0.02332875]
[1743967014886,0.12290297,79746.0,79741.0,0.02332875]
[1743967015085,0.39290297,79746.0,79744.0,0.01254]
[1743967015302,0.39290297,79746.0,79745.0,0.263338]
[1743967015303,0.27,79746.0,79745.0,0.263338]
[1743967015745,0.27,79746.0,79745.0,0.268338]
[1743967015992,0.250687,79781.0,79772.0,0.012535]
[1743967016219,0.250687,79781.0,79763.0,0.005]
[1743967016220,0.0663221,79779.0,79745.0,0.14623172]
[1743967016409,0.13544197,79746.0,79745.0,0.02332875]
[1743967016614,0.39290297,79746.0,79745.0,0.02332875]
[1743967017080,0.40544197,79746.0,79745.0,0.02332875]
[1743967017199,0.39290297,79746.0,79745.0,0.02332875]
[1743967017400,0.14290297,79746.0,79745.0,0.02378303]
[1743967017606,0.39369897,79746.0,79745.0,0.02378303]
[1743967017900,0.14257065,79746.0,79745.0,0.02378303]
[1743967018266,0.15510965,79746.0,79745.0,0.02378303]
[1743967018500,0.27801262,79746.0,79745.0,0.02378303]
[1743967018695,0.14257065,79746.0,79745.0,0.211625]
[1743967018922,0.012536,79769.0,79759.0,0.005]
[1743967019124,0.012536,79769.0,79750.0,0.012539]
[1743967019125,0.012536,79764.0,79750.0,0.255781]
[1743967019329,0.12290297,79763.0,79756.0,0.250764]
[1743967019570,0.57290297,79763.0,79756.0,0.250764]
[1743967019763,0.21,79763.0,79757.0,0.02832875]
[1743967020002,0.21,79763.0,79762.0,0.017537]
[1743967020214,0.0126995,79791.0,79776.0,0.012535]
[1743967020345,0.012535,79774.0,79764.0,0.263274]
[1743967020556,0.12290297,79773.0,79768.0,0.012536]
[1743967020753,0.36290297,79773.0,79768.0,0.012536]
[1743967021028,0.24,79773.0,79772.0,0.012535]
[1743967021303,0.24,79773.0,79768.0,0.012536]
[1743967021521,0.36290297,79773.0,79772.0,0.00045428]
[1743967021726,0.24,79773.0,79772.0,0.26370328]
[1743967021931,0.24,79773.0,79772.0,0.26870328]
[1743967022709,0.24,79773.0,79772.0,0.00045428]
[1743967022912,0.24,79773.0,79772.0,0.26370328]
[1743967023339,0.24,79773.0,79772.0,0.00045428]
[1743967023546,0.37543797,79773.0,79772.0,0.00045428]
[1743967023722,0.24,79773.0,79772.0,0.00045428]
[1743967023929,0.37543797,79773.0,79772.0,0.00045428]
[1743967024115,0.29970297,79773.0,79772.0,0.00045428]
[1743967024308,0.1768,79773.0,79772.0,0.01298928]
[1743967024530,0.1768,79773.0,79772.0,0.00545428]
[1743967024731,0.31223797,79773.0,79772.0,0.00045428]
[1743967026013,0.65223797,79773.0,79772.0,5.428e-05]
[1743967026215,0.31223797,79773.0,79772.0,5.428e-05]
[1743967026368,0.33549131,79773.0,79772.0,5.428e-05]
[1743967026882,0.31223797,79773.0,79772.0,5.428e-05]
[1743967027913,0.33551576,79773.0,79772.0,5.428e-05]
[1743967028333,0.32298076,79773.0,79772.0,5.428e-05]
[1743967028526,0.20007779,79773.0,79772.0,5.428e-05]
[1743967028728,0.33551576,79773.0,79772.0,5.428e-05]
[1743967029130,0.68716305,79773.0,79772.0,5.428e-05]
[1743967029331,1.08117977,79773.0,79772.0,2.8e-07]
[1743967029594,1.08117977,79773.0,78977.0,60.0]
[1743967029595,0.263375,79734.0,79733.0,0.01]
[1743967029793,0.263375,79734.0,79733.0,5.3e-07]
[1743967029794,0.97627797,79734.0,79733.0,5.3e-07]
[1743967029935,0.263437,79715.0,79700.0,0.0003338]
[1743967030130,1.01633997,79715.0,79714.0,8e-07]
[1743967030330,0.263454,79710.0,79709.0,0.11027439]
[1743967030697,0.63635697,79710.0,79709.0,0.11027439]
[1743967031053,0.37290297,79710.0,79702.0,0.012546]
[1743967031222,0.012546,79705.0,79700.0,0.0003338]
[1743967031487,0.012546,79701.0,79700.0,0.00078887]
[1743967031687,0.42709626,79701.0,79700.0,0.00078887]
[1743967032123,0.55513029,79701.0,79700.0,0.00078887]
[1743967032333,0.29164729,79701.0,79700.0,0.01833587]
[1743967032537,0.01164729,79701.0,79700.0,0.01833587]
[1743967032744,0.250881,79720.0,79700.0,0.01833587]
[1743967032745,0.012543,79720.0,79705.0,0.005]
[1743967032920,0.012543,79720.0,79700.0,0.00078887]
[1743967032921,0.250926,79705.0,79700.0,0.00078887]
[1743967033073,0.09,79705.0,79704.0,0.012546]
[1743967033275,0.09,79705.0,79704.0,0.268474]
[1743967033464,0.012543,79723.0,79714.0,0.263439]
[1743967033657,0.012543,79723.0,79708.0,0.012545]
[1743967033658,0.012544,79718.0,79709.0,0.250911]
[1743967033864,0.263461,79708.0,79704.0,0.0535]
[1743967034062,0.02,79708.0,79704.0,0.0535]
[1743967034263,0.14290297,79708.0,79704.0,0.0485]
[1743967034537,0.012546,79701.0,79700.0,0.00078887]
[1743967034746,0.012544,79717.0,79705.0,0.012546]
[1743967034948,0.012544,79717.0,79701.0,0.250937]
[1743967034949,0.18,79717.0,79715.0,0.012544]
[1743967035121,0.18,79717.0,79716.0,0.017544]
[1743967035324,0.18,79717.0,79716.0,0.18894697]
[1743967035524,0.012539,79745.0,79738.0,0.005]
[1743967035744,0.052539,79745.0,79738.0,0.005]
[1743967035924,0.04,79745.0,79744.0,0.005]
[1743967036189,0.04,79745.0,79744.0,0.268342]
[1743967036675,0.04,79745.0,79744.0,0.43974497]
[1743967036977,0.10820463,79747.0,79746.0,0.017539]
[1743967037532,0.10820463,79747.0,79746.0,0.01799407]
[1743967038372,0.10820463,79747.0,79746.0,0.14089704]
[1743967039164,0.10820463,79747.0,79746.0,0.00545507]
[1743967039345,0.10820463,79747.0,79746.0,0.00045507]
[1743967039346,0.02,79747.0,79746.0,0.00045507]
[1743967039766,0.40623497,79747.0,79746.0,0.00045507]
[1743967039979,0.74623497,79747.0,79746.0,0.00045507]
[1743967040169,1.09157699,79747.0,79746.0,0.00045507]
[1743967040416,0.263425,79719.0,79718.0,1.08324]
[1743967040732,0.63036797,79719.0,79718.0,1.08369523]
[1743967041045,0.63036797,79719.0,79718.0,0.00045523]
[1743967041438,0.94953199,79719.0,79718.0,0.00045523]
[1743967041614,0.92629857,79719.0,79718.0,0.00045523]
[1743967042036,0.9379094,79719.0,79718.0,0.00045523]
[1743967042403,0.6804444,79719.0,79718.0,0.00045523]
[1743967042601,0.9438694,79719.0,79718.0,0.00045523]
[1743967043024,0.5459306,79719.0,79718.0,0.00045523]
[1743967043576,0.5584746,79719.0,79718.0,0.00045523]
[1743967043782,0.68137757,79719.0,79718.0,0.00045523]
[1743967044034,1.02137757,79719.0,79718.0,0.00045523]
[1743967044198,0.263483,79701.0,79699.0,0.0003336]
[1743967044415,0.012547,79700.0,79699.0,4e-07]
[1743967044634,0.39999082,79700.0,79699.0,0.00045609]
[1743967044837,0.76499082,79700.0,79699.0,9e-08]
[1743967045446,0.72544997,79700.0,79699.0,9e-08]
[1743967045650,0.75044997,79700.0,79699.0,9e-08]
[1743967045860,0.72544997,79700.0,79699.0,9e-08]
[1743967046065,0.012551,79669.0,79666.0,0.0003344]
[1743967046264,0.64649197,79669.0,79668.0,0.00078994]
[1743967046490,0.523589,79669.0,79668.0,0.00078994]
[1743967046620,0.64649197,79669.0,79668.0,0.00078994]
[1743967047244,0.05209285,79667.0,79666.0,3.4e-07]
[1743967047444,0.75499582,79667.0,79666.0,3.4e-07]
[1743967047662,0.72999582,79667.0,79666.0,3.4e-07]
[1743967047978,0.75499582,79667.0,79666.0,3.4e-07]
[1743967048557,0.263643,79653.0,79652.0,0.0003342]
[1743967048779,0.92247657,79653.0,79652.0,0.0003342]
[1743967050288,1.27701742,79653.0,79652.0,2e-07]
[1743967050487,1.17503283,79653.0,79651.0,4e-07]
[1743967050732,0.263749,79621.0,79619.0,0.0003344]
[1743967050945,0.66665197,79621.0,79619.0,0.0003344]
[1743967051320,0.41546197,79621.0,79619.0,0.0003344]
[1743967051525,0.28,79621.0,79619.0,0.0128934]
[1743967051833,0.28,79621.0,79620.0,0.0635934]
[1743967052257,0.28045372,79621.0,79620.0,0.0178934]
[1743967052427,0.28045372,79621.0,79620.0,0.0003344]
[1743967052978,0.28045372,79621.0,79620.0,0.0178934]
[1743967053183,0.28045372,79621.0,79620.0,0.0003344]
[1743967053393,0.28045372,79621.0,79620.0,0.0178934]
[1743967053585,0.28045372,79621.0,79620.0,0.0128934]
[1743967053799,0.41591569,79621.0,79620.0,0.0003344]
[1743967055188,0.28045372,79621.0,79620.0,0.0003344]
[1743967055357,0.41591569,79621.0,79620.0,0.0003344]
[1743967055831,0.28045372,79621.0,79620.0,0.0003344]
[1743967056033,0.251212,79614.0,79611.0,0.8895488]
[1743967056214,0.01256,79612.0,79611.0,0.8895488]
[1743967056413,0.15546297,79612.0,79611.0,0.8895488]
[1743967057616,0.15546297,79612.0,79594.0,0.251273]
[1743967057617,0.012564,79589.0,79588.0,0.000334]
[1743967057818,0.282564,79589.0,79588.0,0.000334]
[1743967058080,0.40546697,79589.0,79588.0,0.000334]
[1743967058284,0.70139757,79589.0,79588.0,0.000334]
[1743967058503,1.04639757,79589.0,79588.0,0.000334]
[1743967058704,1.04139757,79589.0,79588.0,0.000334]
[1743967059077,1.04185073,79589.0,79588.0,0.000334]
[1743967060750,0.263908,79573.0,79572.0,0.0003344]
[1743967060973,0.67681097,79573.0,79572.0,0.0003344]
[1743967061573,0.42546997,79573.0,79572.0,0.0003344]
[1743967061712,0.42546997,79573.0,79572.0,0.0003744]
[1743967062338,1.08094142,79573.0,79572.0,4e-07]
[1743967062765,1.2288391,79573.0,79572.0,4e-07]
[1743967062978,1.10594142,79573.0,79572.0,4e-07]
[1743967063178,1.07594142,79573.0,79572.0,4e-07]
[1743967063373,0.263994,79547.0,79546.0,0.0003344]
[1743967063614,0.67689697,79547.0,79546.0,0.0003344]
[1743967064190,0.29,79547.0,79546.0,0.0129054]
[1743967064557,0.012568,79562.0,79554.0,0.01257]
[1743967064811,0.012569,79559.0,79548.0,0.012571]
[1743967065022,0.251413,79551.0,79546.0,0.0003344]
[1743967065214,0.26,79551.0,79546.0,0.0003344]
[1743967065419,0.01257,79550.0,79546.0,0.0003344]
[1743967065619,0.012571,79547.0,79546.0,0.0003344]
[1743967065791,0.282571,79547.0,79546.0,0.0003344]
[1743967065994,0.26996,79547.0,79546.0,0.0003344]
[1743967066402,0.26996,79547.0,79546.0,0.0129054]
[1743967067306,0.26996,79547.0,79546.0,0.0003344]
[1743967067527,0.26996,79547.0,79546.0,0.0129054]
[1743967068301,0.26996,79547.0,79546.0,0.0003744]
[1743967068478,0.26996,79547.0,79546.0,0.2643714]
[1743967069899,0.26996,79547.0,79546.0,0.2644114]
[1743967070099,0.251334,79576.0,79564.0,0.263937]
[1743967070341,0.04045316,79565.0,79564.0,0.263937]
[1743967070949,0.00045316,79565.0,79564.0,0.312237]
[1743967071620,0.012562,79600.0,79593.0,0.012563]
[1743967071822,0.012566,79579.0,79573.0,0.263907]
[1743967072158,0.012566,79579.0,79570.0,0.263918]
[1743967072159,0.251332,79576.0,79570.0,0.263918]
[1743967072335,0.012565,79583.0,79564.0,0.0946]
[1743967072336,0.012563,79595.0,79584.0,0.012565]
[1743967072521,0.012561,79607.0,79600.0,0.263817]
[1743967072842,0.012563,79596.0,79591.0,0.012564]
[1743967073043,0.012563,79598.0,79597.0,0.00013584]
[1743967073249,0.032563,79598.0,79597.0,0.00013584]
[1743967073419,0.02,79598.0,79597.0,0.01269884]
[1743967074221,0.02,79598.0,79597.0,0.00013584]
[1743967074624,0.02,79598.0,79597.0,0.01269884]
[1743967075486,0.02,79598.0,79597.0,0.13560181]
[1743967075687,0.012558,79627.0,79620.0,0.263751]
[1743967075833,0.34,79622.0,79617.0,0.01256]
[1743967076036,0.012559,79621.0,79616.0,0.263765]
[1743967076264,0.272559,79621.0,79616.0,0.263765]
[1743967076542,0.26,79621.0,79620.0,0.263752]
[1743967076751,0.26,79621.0,79620.0,0.309652]
[1743967076966,0.26,79621.0,79620.0,0.0459]
[1743967077185,0.26,79621.0,79618.0,0.0498]
[1743967077793,0.26,79621.0,79617.0,0.01256]
[1743967078146,0.26,79621.0,79609.0,0.0459]
[1743967078147,0.01256,79613.0,79609.0,0.0459]
[1743967078347,0.012559,79624.0,79613.0,0.01256]
[1743967078550,0.28,79624.0,79619.0,0.263755]
[1743967078755,0.263742,79623.0,79614.0,0.251212]
[1743967078924,0.483742,79623.0,79617.0,0.01256]
[1743967079120,0.22,79623.0,79621.0,0.263748]
[1743967079379,0.22,79623.0,79621.0,0.012559]
[1743967079555,0.22,79623.0,79621.0,0.263747]
[1743967079761,0.22,79623.0,79622.0,0.012559]
[1743967080007,0.22,79623.0,79621.0,0.012559]
[1743967080419,0.263745,79622.0,79621.0,0.00013584]
[1743967080603,1.42224797,79622.0,79621.0,0.00013584]
[1743967080952,1.43678882,79622.0,79621.0,8.4e-07]
[1743967081064,1.46678882,79622.0,79621.0,8.4e-07]
[1743967081273,0.012562,79599.0,79590.0,0.012564]
[1743967081474,0.012562,79599.0,79580.0,0.251318]
[1743967081475,0.39290297,79599.0,79580.0,0.0001359]
[1743967081669,0.251306,79584.0,79580.0,0.0001359]
[1743967081885,0.02,79584.0,79580.0,0.0001359]
[1743967082095,0.02,79584.0,79582.0,0.263877]
[1743967082294,0.02,79584.0,79583.0,0.012565]
[1743967082932,0.02,79584.0,79583.0,0.13798087]
[1743967083131,0.4156,79602.0,79600.0,0.012562]
[1743967083338,0.6156,79602.0,79601.0,0.012562]
[1743967083508,0.55272,79602.0,79601.0,0.012562]
[1743967084149,0.2,79602.0,79601.0,0.012562]
[1743967084346,0.2,79602.0,79601.0,0.059962]
[1743967084536,0.251158,79632.0,79601.0,0.059962]
[1743967084537,0.012558,79628.0,79621.0,0.012559]
[1743967084739,0.22,79628.0,79624.0,0.012559]
[1743967084983,0.22,79628.0,79626.0,0.012558]
[1743967085161,0.22,79628.0,79626.0,0.263731]
[1743967085367,0.22,79628.0,79626.0,0.263729]
[1743967085538,0.22,79628.0,79626.0,0.263731]
[1743967085732,0.25118,79624.0,79621.0,0.0492]
[1743967085940,0.04,79624.0,79621.0,0.0001359]
[1743967086311,0.04,79624.0,79623.0,0.059959]
[1743967086520,0.0001673,79653.0,79652.0,0.263646]
[1743967086720,0.0301673,79653.0,79652.0,0.263646]
[1743967086933,0.0001673,79653.0,79652.0,0.48314897]
[1743967087076,3e-07,79653.0,79652.0,0.48314897]
[1743967087278,0.263519,79691.0,79684.0,0.26354]
[1743967087500,0.1801671,79685.0,79683.0,0.263542]
[1743967087682,0.1801671,79685.0,79684.0,0.012549]
[1743967087925,0.18062118,79685.0,79684.0,0.059949]
[1743967088108,0.00062118,79685.0,79684.0,0.109149]
[1743967088481,0.00062118,79685.0,79684.0,0.0966]
[1743967088751,0.01062118,79685.0,79684.0,0.348549]
[1743967088936,0.01062118,79685.0,79684.0,0.336]
[1743967089082,0.01062118,79685.0,79684.0,0.348549]
[1743967090144,0.0001676,79701.0,79700.0,0.263488]
[1743967090316,0.0101676,79701.0,79700.0,1.348488]
[1743967090729,0.0001676,79701.0,79700.0,1.47139097]
[1743967091056,2e-07,79703.0,79702.0,0.012546]
[1743967091257,2e-07,79703.0,79702.0,0.13544897]
[1743967091779,2e-07,79703.0,79702.0,0.13795787]
[1743967091915,0.0001674,79733.0,79732.0,0.263382]
[1743967092120,0.2401674,79733.0,79732.0,0.27588188]
[1743967092841,0.2401674,79733.0,79732.0,0.44618485]
[1743967093250,0.0001674,79733.0,79732.0,0.44632075]
[1743967094438,0.0001674,79733.0,79732.0,0.07261778]
[1743967094647,0.0001674,79733.0,79732.0,0.19552075]
[1743967094929,0.0001674,79733.0,79732.0,0.07261778]
[1743967095157,0.2201674,79733.0,79732.0,0.07261778]
[1743967095366,0.0101674,79733.0,79732.0,0.07261778]
[1743967095961,0.0101674,79733.0,79732.0,0.19802908]
[1743967096299,0.0001674,79733.0,79732.0,0.19552075]
[1743967096631,0.0001674,79733.0,79732.0,0.19802858]
[1743967096833,0.0001674,79733.0,79732.0,0.19552075]
[1743967097043,0.000167,79746.0,79745.0,0.263338]
[1743967097248,0.4,79750.0,79749.0,0.263325]
[1743967097433,0.0001672,79765.0,79749.0,0.37368897]
[1743967097644,0.0001672,79765.0,79764.0,0.311975]
[1743967097999,0.0001672,79765.0,79764.0,0.56355488]
[1743967098738,0.0101672,79765.0,79764.0,0.5762765]
[1743967099226,0.01062156,79765.0,79764.0,0.69917947]
[1743967099412,0.0001674,79783.0,79782.0,0.263217]
[1743967099613,0.1201674,79783.0,79782.0,0.27585278]
[1743967100599,0.0001674,79783.0,79782.0,0.27585278]
[1743967101001,0.0201674,79783.0,79782.0,0.02516978]
[1743967101463,0.0001674,79783.0,79782.0,0.02516978]
[1743967102103,0.3027004,79783.0,79782.0,0.01263578]
[1743967102317,0.3027004,79783.0,79782.0,0.2390159]
[1743967102318,0.42560337,79783.0,79782.0,0.2390159]
[1743967102527,0.42560337,79783.0,79782.0,0.0001359]
[1743967102678,0.2901674,79783.0,79782.0,0.0001359]
[1743967102886,0.42560337,79783.0,79782.0,0.0001359]
[1743967103093,0.2901674,79783.0,79782.0,0.0001359]
[1743967103296,0.2901674,79783.0,79782.0,0.0126699]
[1743967103502,0.2901674,79783.0,79782.0,0.0001359]
[1743967103700,0.0201674,79783.0,79782.0,0.0001359]
[1743967104505,0.0001674,79783.0,79782.0,0.0001359]
[1743967104867,0.15560337,79783.0,79782.0,0.0001359]
[1743967105614,0.15560337,79783.0,79782.0,0.2389759]
[1743967105817,0.15560337,79783.0,79782.0,0.0001359]
[1743967106386,0.15560337,79783.0,79782.0,0.2633529]
[1743967106387,0.0201674,79783.0,79782.0,0.2633529]
[1743967106584,0.0201674,79783.0,79782.0,0.0001359]
[1743967106843,0.0201674,79783.0,79782.0,0.0126699]
[1743967106844,0.0001674,79783.0,79782.0,0.0126699]
[1743967107052,0.0001674,79783.0,79782.0,0.0594699]
[1743967107260,0.0927004,79783.0,79782.0,0.0001759]
[1743967107462,0.46628237,79783.0,79782.0,0.0001759]
[1743967108802,1.15900237,79783.0,79782.0,9e-07]
[1743967109002,0.263272,79765.0,79764.0,4e-05]
[1743967109220,0.62617497,79765.0,79764.0,0.00017598]
[1743967109933,0.24,79765.0,79764.0,0.00017598]
[1743967110333,0.503272,79765.0,79764.0,0.00017598]
[1743967110532,0.62617497,79765.0,79764.0,0.00017598]
[1743967111620,0.62617497,79765.0,79764.0,0.00021598]
[1743967112023,0.97889497,79765.0,79764.0,0.00021598]
[1743967113208,0.97879497,79765.0,79764.0,0.00021598]
[1743967113869,0.97879497,79765.0,79764.0,0.00025598]
[1743967115233,0.62607497,79765.0,79764.0,0.00025598]
[1743967116165,0.56319497,79765.0,79764.0,0.00029598]
[1743967116564,0.57480956,79765.0,79764.0,0.00029598]
[1743967116776,1.31207041,79765.0,79764.0,9.8e-07]
[1743967116950,0.263371,79735.0,79734.0,1.083]